[Event "Live Chess"]
[Site "Chess.com"]
[Date "2024.06.02"]
[Round "-"]
[White "ameetghasi100"]
[Black "raimundklein"]
[Result "1-0"]
[WhiteElo "2792"]
[BlackElo "1570"]
[TimeControl "300"]
[EndTime "1:43:02 PDT"]
[Termination "ameetghasi100 won on time"]

1. c4 {[%clk 0:04:58.5]} 1... Nf6 {[%clk 0:04:55.7]} 2. Nf3 {[%clk 0:04:58.4]}
2... g6 {[%clk 0:04:54.2]} 3. h4 {[%clk 0:04:58.3]} 3... Bg7 {[%clk 0:04:48.5]}
4. Nc3 {[%clk 0:04:58.2]} 4... d6 {[%clk 0:04:45.2]} 5. d4 {[%clk 0:04:58.1]}
5... Bg4 {[%clk 0:04:38.4]} 6. h5 {[%clk 0:04:58]} 6... Bxh5 {[%clk 0:04:36.9]}
7. Qb3 {[%clk 0:04:57.4]} 7... b6 {[%clk 0:04:34.5]} 8. g3 {[%clk 0:04:54.9]}
8... O-O {[%clk 0:04:30.9]} 9. Bg2 {[%clk 0:04:53.8]} 9... c6 {[%clk 0:04:16.9]}
10. Bg5 {[%clk 0:04:49.3]} 10... Qc7 {[%clk 0:04:14.2]} 11. d5 {[%clk
0:04:45.9]} 11... c5 {[%clk 0:04:08.9]} 12. Nd2 {[%clk 0:04:25.3]} 12... h6
{[%clk 0:03:57.5]} 13. Be3 {[%clk 0:04:19.3]} 13... g5 {[%clk 0:03:53.4]} 14. f4
{[%clk 0:04:13.3]} 14... gxf4 {[%clk 0:03:44.7]} 15. gxf4 {[%clk 0:04:10.3]}
15... Bg6 {[%clk 0:03:42.3]} 16. Bg1 {[%clk 0:04:07.3]} 16... Nbd7 {[%clk
0:03:34.4]} 17. e4 {[%clk 0:04:05.5]} 17... e6 {[%clk 0:03:28]} 18. Be3 {[%clk
0:03:54]} 18... Rae8 {[%clk 0:03:18]} 19. O-O-O {[%clk 0:03:47.2]} 19... exd5
{[%clk 0:03:10.1]} 20. cxd5 {[%clk 0:03:43.7]} 20... a6 {[%clk 0:03:04.5]} 21.
a4 {[%clk 0:03:40.4]} 21... Rb8 {[%clk 0:02:57]} 22. Bf1 {[%clk 0:03:35.5]}
22... b5 {[%clk 0:02:48.3]} 23. axb5 {[%clk 0:03:33.4]} 23... axb5 {[%clk
0:02:47.4]} 24. Nxb5 {[%clk 0:03:33.3]} 24... Qa5 {[%clk 0:02:24.5]} 25. f5
{[%clk 0:03:31]} 25... Bh7 {[%clk 0:02:22.2]} 26. Bxh6 {[%clk 0:03:29.8]} 26...
Nxe4 {[%clk 0:02:09.1]} 27. Nxe4 {[%clk 0:03:24.1]} 27... Bxf5 {[%clk
0:02:07.3]} 28. Bxg7 {[%clk 0:03:11.9]} 28... Kxg7 {[%clk 0:01:54.1]} 29. Qc3+
{[%clk 0:03:09.8]} 29... Qxc3+ {[%clk 0:01:50.3]} 30. Nexc3 {[%clk 0:03:09.7]}
30... f6 {[%clk 0:01:41.8]} 31. Nxd6 {[%clk 0:03:07.4]} 31... Bg6 {[%clk
0:01:34.1]} 32. Bh3 {[%clk 0:03:06.9]} 32... Ne5 {[%clk 0:01:30.7]} 33. Nf5+
{[%clk 0:03:06.4]} 33... Kf7 {[%clk 0:01:24.1]} 34. d6 {[%clk 0:03:03.2]} 34...
Rh8 {[%clk 0:01:17.4]} 35. d7 {[%clk 0:02:59]} 35... Rbd8 {[%clk 0:01:13.3]} 36.
Nd6+ {[%clk 0:02:51.6]} 36... Ke7 {[%clk 0:01:07.2]} 37. Nc8+ {[%clk 0:02:42.6]}
37... Kf7 {[%clk 0:01:04.3]} 38. Bg2 {[%clk 0:02:37.4]} 38... Rxh1 {[%clk
0:00:59.1]} 39. Bxh1 {[%clk 0:02:27.9]} 39... Rxd7 {[%clk 0:00:58]} 40. Rxd7+
{[%clk 0:02:25.2]} 40... Nxd7 {[%clk 0:00:56.5]} 41. Nd6+ {[%clk 0:02:24.4]}
41... Ke6 {[%clk 0:00:54.9]} 42. Nc4 {[%clk 0:02:24.3]} 42... f5 {[%clk
0:00:50]} 43. Ne3 {[%clk 0:02:23.2]} 43... f4 {[%clk 0:00:48.8]} 44. Ng4 {[%clk
0:02:20.9]} 44... Kf5 {[%clk 0:00:46.6]} 45. Nf2 {[%clk 0:02:20.1]} 45... Bh5
{[%clk 0:00:43.7]} 46. Be4+ {[%clk 0:02:18.7]} 46... Ke5 {[%clk 0:00:42.2]} 47.
Kd2 {[%clk 0:02:18.6]} 47... Nf6 {[%clk 0:00:38.2]} 48. Bc2 {[%clk 0:02:13.3]}
48... Kd4 {[%clk 0:00:36.9]} 49. Nb5+ {[%clk 0:02:03.9]} 49... Kc4 {[%clk
0:00:35.2]} 50. Na3+ {[%clk 0:02:02.9]} 50... Kd4 {[%clk 0:00:33.8]} 51. Bd3
{[%clk 0:02:00.6]} 51... Nd5 {[%clk 0:00:29.6]} 52. Nc2+ {[%clk 0:01:57.8]}
52... Ke5 {[%clk 0:00:27.9]} 53. Bc4 {[%clk 0:01:57.7]} 53... Nb6 {[%clk
0:00:24.2]} 54. Nd3+ {[%clk 0:01:55.9]} 54... Kd6 {[%clk 0:00:22.4]} 55. Bg8
{[%clk 0:01:54.9]} 55... f3 {[%clk 0:00:20.7]} 56. Ne3 {[%clk 0:01:52.6]} 56...
Na4 {[%clk 0:00:17.6]} 57. b3 {[%clk 0:01:50.5]} 57... Nb6 {[%clk 0:00:15.7]}
58. Nf2 {[%clk 0:01:42.8]} 58... Nd7 {[%clk 0:00:14.3]} 59. Nc4+ {[%clk
0:01:36.4]} 59... Kc6 {[%clk 0:00:12.3]} 60. Bh7 {[%clk 0:01:36.3]} 60... Kd5
{[%clk 0:00:08.6]} 61. Ke3 {[%clk 0:01:34]} 61... Nf6 {[%clk 0:00:05.5]} 62.
Be4+ {[%clk 0:01:33.9]} 62... Nxe4 {[%clk 0:00:03.9]} 63. Nxe4 {[%clk
0:01:33.7]} 1-0

[Event "Live Chess"]
[Site "Chess.com"]
[Date "2024.06.02"]
[Round "-"]
[White "CheckThis4"]
[Black "Hoogleboogle"]
[Result "1-0"]
[WhiteElo "2695"]
[BlackElo "1363"]
[TimeControl "300"]
[EndTime "1:43:19 PDT"]
[Termination "CheckThis4 won by checkmate"]

1. d4 {[%clk 0:04:58]} 1... Nf6 {[%clk 0:04:56.8]} 2. Nc3 {[%clk 0:04:54.8]}
2... e6 {[%clk 0:04:55.5]} 3. e4 {[%clk 0:04:48.3]} 3... Bb4 {[%clk 0:04:48.2]}
4. e5 {[%clk 0:04:46.9]} 4... Nd5 {[%clk 0:04:45.8]} 5. Bd2 {[%clk 0:04:45.1]}
5... Nxc3 {[%clk 0:04:42.9]} 6. bxc3 {[%clk 0:04:44]} 6... Ba5 {[%clk
0:04:40.1]} 7. Qg4 {[%clk 0:04:42.5]} 7... O-O {[%clk 0:04:37.7]} 8. Bd3 {[%clk
0:04:40.2]} 8... g6 {[%clk 0:04:28.8]} 9. h4 {[%clk 0:04:36.4]} 9... f5 {[%clk
0:04:17.9]} 10. exf6 {[%clk 0:04:31.6]} 10... Qxf6 {[%clk 0:04:16.4]} 11. Nf3
{[%clk 0:04:30]} 11... d6 {[%clk 0:04:08.5]} 12. Qe4 {[%clk 0:03:57.8]} 12... d5
{[%clk 0:03:59.3]} 13. Qe3 {[%clk 0:03:52.2]} 13... Nc6 {[%clk 0:03:33.2]} 14.
h5 {[%clk 0:03:50.5]} 14... Ne7 {[%clk 0:03:28.7]} 15. hxg6 {[%clk 0:03:47.9]}
15... hxg6 {[%clk 0:03:25]} 16. Qh6 {[%clk 0:03:35.3]} 16... Qg7 {[%clk
0:03:21.8]} 17. Qh4 {[%clk 0:03:33.1]} 17... Nf5 {[%clk 0:03:19]} 18. Bxf5
{[%clk 0:03:30.9]} 18... exf5 {[%clk 0:03:17.9]} 19. Kf1 {[%clk 0:03:24.8]}
19... Bd7 {[%clk 0:03:05]} 20. Bh6 {[%clk 0:03:17.7]} 20... Qh7 {[%clk
0:02:54.8]} 21. Ng5 {[%clk 0:03:13.9]} 21... Qh8 {[%clk 0:02:50.6]} 22. Bxf8
{[%clk 0:02:52.4]} 22... Rxf8 {[%clk 0:02:47.9]} 23. Qxh8# {[%clk 0:02:48.8]}
1-0

[Event "Live Chess"]
[Site "Chess.com"]
[Date "2024.06.02"]
[Round "-"]
[White "NeilDruggan73"]
[Black "RockTroll"]
[Result "0-1"]
[WhiteElo "1695"]
[BlackElo "2179"]
[TimeControl "300"]
[EndTime "1:43:24 PDT"]
[Termination "RockTroll won by resignation"]

1. d4 {[%clk 0:04:59.6]} 1... Nf6 {[%clk 0:04:58.6]} 2. Bg5 {[%clk 0:04:57.8]}
2... g6 {[%clk 0:04:57.3]} 3. Bxf6 {[%clk 0:04:56.6]} 3... exf6 {[%clk
0:04:57.2]} 4. e3 {[%clk 0:04:55.8]} 4... Bg7 {[%clk 0:04:56.5]} 5. Nd2 {[%clk
0:04:54.7]} 5... d5 {[%clk 0:04:56]} 6. g3 {[%clk 0:04:54.1]} 6... O-O {[%clk
0:04:55.4]} 7. Bg2 {[%clk 0:04:53.5]} 7... c6 {[%clk 0:04:55]} 8. b3 {[%clk
0:04:53]} 8... Nd7 {[%clk 0:04:52.3]} 9. Ne2 {[%clk 0:04:52.9]} 9... f5 {[%clk
0:04:51.8]} 10. O-O {[%clk 0:04:52.1]} 10... Nf6 {[%clk 0:04:51.5]} 11. Rc1
{[%clk 0:04:51.5]} 11... Ne4 {[%clk 0:04:51]} 12. c4 {[%clk 0:04:48.6]} 12... h5
{[%clk 0:04:50.5]} 13. cxd5 {[%clk 0:04:46.1]} 13... cxd5 {[%clk 0:04:50.4]} 14.
Nc3 {[%clk 0:04:42.8]} 14... h4 {[%clk 0:04:49.3]} 15. Ncxe4 {[%clk 0:04:33]}
15... fxe4 {[%clk 0:04:46.8]} 16. Rc5 {[%clk 0:04:29.9]} 16... h3 {[%clk
0:04:40.1]} 17. Bh1 {[%clk 0:04:28.2]} 17... b6 {[%clk 0:04:32.4]} 18. Rc3
{[%clk 0:04:25.9]} 18... Ba6 {[%clk 0:04:31.9]} 19. Re1 {[%clk 0:04:25.1]} 19...
Rc8 {[%clk 0:04:22.1]} 20. Nb1 {[%clk 0:04:13.3]} 20... Rxc3 {[%clk 0:04:16]}
21. Nxc3 {[%clk 0:04:12.3]} 21... Qd7 {[%clk 0:04:11.3]} 22. Qd2 {[%clk
0:04:03.6]} 22... Rc8 {[%clk 0:04:10.5]} 23. Rc1 {[%clk 0:04:01.9]} 23... Bf8
{[%clk 0:04:09.7]} 24. Nxd5 {[%clk 0:03:56.9]} 24... Qxd5 {[%clk 0:04:05.4]} 25.
Rxc8 {[%clk 0:03:54.8]} 25... Bxc8 {[%clk 0:04:04.4]} 26. Qc2 {[%clk 0:03:53.9]}
26... Ba6 {[%clk 0:04:00.3]} 27. Bxe4 {[%clk 0:03:51.4]} 27... Qb5 {[%clk
0:03:57.1]} 28. Qb1 {[%clk 0:03:48.4]} 28... Qe2 {[%clk 0:03:48.9]} 29. b4
{[%clk 0:03:40.6]} 29... Bxb4 {[%clk 0:03:47.2]} 30. d5 {[%clk 0:03:20.5]} 30...
Be1 {[%clk 0:03:44.5]} 31. Bg2 {[%clk 0:03:07.6]} 31... Qxf2+ {[%clk 0:03:41.8]}
0-1

[Event "Live Chess"]
[Site "Chess.com"]
[Date "2024.06.02"]
[Round "-"]
[White "lateforthesky"]
[Black "NAZRIZ1977"]
[Result "0-1"]
[WhiteElo "2070"]
[BlackElo "2131"]
[TimeControl "300"]
[EndTime "1:43:50 PDT"]
[Termination "NAZRIZ1977 won by resignation"]

1. e4 {[%clk 0:04:55.8]} 1... d6 {[%clk 0:04:58.8]} 2. d4 {[%clk 0:04:53.9]}
2... Nf6 {[%clk 0:04:58.2]} 3. Nc3 {[%clk 0:04:53.3]} 3... Nbd7 {[%clk
0:04:57.5]} 4. f4 {[%clk 0:04:51.2]} 4... e5 {[%clk 0:04:56.7]} 5. Nf3 {[%clk
0:04:50.4]} 5... exd4 {[%clk 0:04:52.2]} 6. Qxd4 {[%clk 0:04:48.5]} 6... Be7
{[%clk 0:04:50.7]} 7. Be3 {[%clk 0:04:46.1]} 7... O-O {[%clk 0:04:47.7]} 8.
O-O-O {[%clk 0:04:44.6]} 8... a6 {[%clk 0:04:45.2]} 9. h3 {[%clk 0:04:38.7]}
9... b5 {[%clk 0:04:42.2]} 10. e5 {[%clk 0:04:37.1]} 10... Ne8 {[%clk
0:04:40.8]} 11. Nd5 {[%clk 0:04:29]} 11... Bb7 {[%clk 0:04:36.3]} 12. Nxe7+
{[%clk 0:04:27]} 12... Qxe7 {[%clk 0:04:36.2]} 13. Kb1 {[%clk 0:03:55.3]} 13...
d5 {[%clk 0:04:33.2]} 14. f5 {[%clk 0:03:47.4]} 14... c5 {[%clk 0:04:31.8]} 15.
Qf4 {[%clk 0:03:46.6]} 15... d4 {[%clk 0:04:30.5]} 16. Bc1 {[%clk 0:03:44.6]}
16... Bxf3 {[%clk 0:04:27.1]} 17. Qxf3 {[%clk 0:03:43.2]} 17... Nc7 {[%clk
0:04:26.2]} 18. f6 {[%clk 0:03:32.4]} 18... gxf6 {[%clk 0:04:24.6]} 19. exf6
{[%clk 0:03:31]} 19... Qxf6 {[%clk 0:04:23.6]} 20. Qg3+ {[%clk 0:03:30]} 20...
Kh8 {[%clk 0:04:10.2]} 21. Qxc7 {[%clk 0:03:28.5]} 21... Ne5 {[%clk 0:04:09.5]}
22. Qxc5 {[%clk 0:03:07.5]} 22... Rac8 {[%clk 0:04:07.7]} 23. Qxd4 {[%clk
0:03:03.6]} 23... Rfd8 {[%clk 0:04:06.5]} 24. Qxd8+ {[%clk 0:02:44.4]} 24...
Rxd8 {[%clk 0:04:04.7]} 25. Rxd8+ {[%clk 0:02:42.5]} 25... Qxd8 {[%clk
0:04:03.5]} 26. Be2 {[%clk 0:02:41.6]} 26... Nc4 {[%clk 0:03:52.1]} 27. Rd1
{[%clk 0:02:37.4]} 27... Qe7 {[%clk 0:03:48]} 28. Bf3 {[%clk 0:02:26]} 28... Kg7
{[%clk 0:03:46.7]} 29. b3 {[%clk 0:02:10.8]} 29... Na3+ {[%clk 0:03:40.5]} 30.
Bxa3 {[%clk 0:02:02.6]} 30... Qxa3 {[%clk 0:03:39.7]} 31. Rd7 {[%clk 0:02:01.7]}
31... Qc5 {[%clk 0:03:22.1]} 32. Bd5 {[%clk 0:01:55.1]} 32... a5 {[%clk
0:03:10.9]} 33. Rxf7+ {[%clk 0:01:42.2]} 33... Kg6 {[%clk 0:03:09.4]} 34. c4
{[%clk 0:01:41.3]} 34... a4 {[%clk 0:03:06]} 35. Rb7 {[%clk 0:01:39.2]} 35... a3
{[%clk 0:03:02.1]} 36. Rxb5 {[%clk 0:01:26.2]} 36... Qd4 {[%clk 0:02:57.8]} 37.
Kc1 {[%clk 0:01:25.1]} 37... Qb2+ {[%clk 0:02:53.3]} 38. Kd1 {[%clk 0:01:23.7]}
38... Qxa2 {[%clk 0:02:52.7]} 39. c5 {[%clk 0:01:16.4]} 39... Qb1+ {[%clk
0:02:46.5]} 40. Kd2 {[%clk 0:01:10.4]} 40... a2 {[%clk 0:02:46]} 0-1

[Event "Live Chess"]
[Site "Chess.com"]
[Date "2024.06.02"]
[Round "-"]
[White "Pandreq"]
[Black "missedJariChance"]
[Result "0-1"]
[WhiteElo "1195"]
[BlackElo "1356"]
[TimeControl "300"]
[EndTime "1:44:33 PDT"]
[Termination "missedJariChance won by resignation"]

1. d4 {[%clk 0:04:57.8]} 1... d5 {[%clk 0:04:57.6]} 2. c4 {[%clk 0:04:54.8]}
2... e6 {[%clk 0:04:55.6]} 3. a3 {[%clk 0:04:52.3]} 3... Nf6 {[%clk 0:04:52.2]}
4. Bg5 {[%clk 0:04:48.6]} 4... Be7 {[%clk 0:04:50]} 5. Nc3 {[%clk 0:04:47.2]}
5... O-O {[%clk 0:04:47.4]} 6. e3 {[%clk 0:04:44.4]} 6... c5 {[%clk 0:04:39.9]}
7. cxd5 {[%clk 0:04:41.5]} 7... Nxd5 {[%clk 0:04:37.5]} 8. Nxd5 {[%clk 0:04:38]}
8... Bxg5 {[%clk 0:04:29.5]} 9. Nc3 {[%clk 0:04:33.8]} 9... cxd4 {[%clk
0:04:17.5]} 10. Qxd4 {[%clk 0:04:31.6]} 10... Nc6 {[%clk 0:04:11.9]} 11. Qxd8
{[%clk 0:04:28.7]} 11... Rxd8 {[%clk 0:04:10.3]} 12. Nf3 {[%clk 0:04:27.2]}
12... Bf6 {[%clk 0:04:04.7]} 13. Bb5 {[%clk 0:04:17.3]} 13... Ne5 {[%clk
0:03:57.4]} 14. Nxe5 {[%clk 0:04:15.5]} 14... Bxe5 {[%clk 0:03:56]} 15. O-O
{[%clk 0:04:14.3]} 15... a6 {[%clk 0:03:53.1]} 16. Ba4 {[%clk 0:04:12]} 16... b5
{[%clk 0:03:51.5]} 17. Bc2 {[%clk 0:04:10]} 17... Rd2 {[%clk 0:03:36.9]} 18.
Rac1 {[%clk 0:04:04.9]} 18... Bb7 {[%clk 0:03:34.6]} 19. Rfd1 {[%clk 0:04:02.4]}
19... Rad8 {[%clk 0:03:31.1]} 20. Nb1 {[%clk 0:03:54.2]} 20... Rxd1+ {[%clk
0:03:21.6]} 21. Rxd1 {[%clk 0:03:53.1]} 21... Rxd1+ {[%clk 0:03:18.5]} 22. Bxd1
{[%clk 0:03:52.1]} 22... Bxb2 {[%clk 0:03:13]} 23. f3 {[%clk 0:03:43.7]} 23...
g6 {[%clk 0:03:08.3]} 24. e4 {[%clk 0:03:42.5]} 24... Kg7 {[%clk 0:03:06.5]} 25.
Kf2 {[%clk 0:03:41.3]} 25... Kf6 {[%clk 0:03:04.6]} 26. Ke3 {[%clk 0:03:40.3]}
26... Ke5 {[%clk 0:03:03]} 27. Be2 {[%clk 0:03:37.7]} 27... Bd4+ {[%clk
0:02:48.8]} 28. Kd2 {[%clk 0:03:31]} 28... Bg1 {[%clk 0:02:44.1]} 29. h3 {[%clk
0:03:26]} 29... Kd4 {[%clk 0:02:41.2]} 30. g4 {[%clk 0:03:17.6]} 30... Bh2
{[%clk 0:02:32.5]} 31. Bd1 {[%clk 0:03:09.1]} 31... Bf4+ {[%clk 0:02:15.3]} 32.
Kc2 {[%clk 0:03:04.9]} 32... Kc4 {[%clk 0:01:58.7]} 33. Kb2 {[%clk 0:02:53.2]}
33... b4 {[%clk 0:01:53.8]} 34. axb4 {[%clk 0:02:51.4]} 34... Kxb4 {[%clk
0:01:51.9]} 35. Nc3 {[%clk 0:02:45.6]} 35... Bc6 {[%clk 0:01:41.9]} 36. Ne2
{[%clk 0:02:38.6]} 36... Bh6 {[%clk 0:01:38.6]} 37. Nd4 {[%clk 0:02:34.3]} 37...
Bb5 {[%clk 0:01:36.2]} 38. h4 {[%clk 0:02:20.9]} 38... Bg7 {[%clk 0:01:30.3]}
0-1

[Event "Live Chess"]
[Site "Chess.com"]
[Date "2024.06.02"]
[Round "-"]
[White "Vladyslav2008"]
[Black "jellhhggffhjjjjjj"]
[Result "1-0"]
[WhiteElo "2255"]
[BlackElo "402"]
[TimeControl "300"]
[EndTime "1:44:35 PDT"]
[Termination "Vladyslav2008 won by resignation"]

1. e4 {[%clk 0:04:56.6]} 1... d5 {[%clk 0:04:58.9]} 2. exd5 {[%clk 0:04:54.9]}
2... Nf6 {[%clk 0:04:57.8]} 3. d4 {[%clk 0:04:53.4]} 3... Nxd5 {[%clk
0:04:56.8]} 4. c4 {[%clk 0:04:52.3]} 4... Nf6 {[%clk 0:04:55]} 5. Nc3 {[%clk
0:04:50.8]} 5... Nc6 {[%clk 0:04:50.9]} 6. Nf3 {[%clk 0:04:49.3]} 6... e5 {[%clk
0:04:49]} 7. d5 {[%clk 0:04:47.3]} 7... Nd4 {[%clk 0:04:42.4]} 8. Nxd4 {[%clk
0:04:45.4]} 8... exd4 {[%clk 0:04:40.4]} 9. Qxd4 {[%clk 0:04:45.3]} 9... Bb4
{[%clk 0:04:36.4]} 10. Bd3 {[%clk 0:04:43.3]} 10... Qe7+ {[%clk 0:04:33.8]} 11.
Be3 {[%clk 0:04:40.9]} 11... Bd7 {[%clk 0:04:15]} 12. O-O {[%clk 0:04:39]} 12...
O-O {[%clk 0:04:12.3]} 13. Rfe1 {[%clk 0:04:28.9]} 13... Qd6 {[%clk 0:03:56.4]}
14. Bf4 {[%clk 0:04:27.3]} 14... Qb6 {[%clk 0:03:48.1]} 15. Qxb6 {[%clk
0:04:20.8]} 15... axb6 {[%clk 0:03:40.9]} 16. Bxc7 {[%clk 0:04:18.9]} 16... Bc5
{[%clk 0:03:35.9]} 17. a3 {[%clk 0:04:14.4]} 17... Bd4 {[%clk 0:03:32.8]} 18.
Be5 {[%clk 0:04:10.6]} 18... Bxe5 {[%clk 0:03:19.8]} 19. Rxe5 {[%clk 0:04:10.5]}
19... Rae8 {[%clk 0:03:16.1]} 20. Rae1 {[%clk 0:04:08.4]} 20... g6 {[%clk
0:02:57.7]} 21. Rxe8 {[%clk 0:04:03.9]} 21... Rxe8 {[%clk 0:02:50.7]} 22. Rxe8+
{[%clk 0:04:02.2]} 22... Nxe8 {[%clk 0:02:49.4]} 23. b4 {[%clk 0:04:00.9]} 23...
Nd6 {[%clk 0:02:48.3]} 24. c5 {[%clk 0:03:59.6]} 24... Nf5 {[%clk 0:02:41.1]}
25. Bxf5 {[%clk 0:03:57.2]} 25... Bxf5 {[%clk 0:02:39]} 26. cxb6 {[%clk
0:03:51.3]} 26... Kg7 {[%clk 0:02:28.7]} 27. f4 {[%clk 0:03:49.2]} 27... h5
{[%clk 0:02:25.3]} 28. Kf2 {[%clk 0:03:47.8]} 28... Bd3 {[%clk 0:02:00.4]} 29.
Ke3 {[%clk 0:03:45.9]} 29... Bc4 {[%clk 0:01:56.7]} 30. Kd4 {[%clk 0:03:43.8]}
30... Bf1 {[%clk 0:01:49.7]} 31. g3 {[%clk 0:03:42.4]} 31... Bb5 {[%clk
0:01:45.9]} 32. Nxb5 {[%clk 0:03:26.4]} 1-0

[Event "Live Chess"]
[Site "Chess.com"]
[Date "2024.06.02"]
[Round "-"]
[White "upoe610"]
[Black "MagnersCarlsberg2870"]
[Result "1-0"]
[WhiteElo "2188"]
[BlackElo "1805"]
[TimeControl "300"]
[EndTime "1:44:45 PDT"]
[Termination "upoe610 won by resignation"]

1. c4 {[%clk 0:04:55.8]} 1... e5 {[%clk 0:04:57]} 2. g3 {[%clk 0:04:54.2]} 2...
Nf6 {[%clk 0:04:55]} 3. Bg2 {[%clk 0:04:53.2]} 3... Bc5 {[%clk 0:04:53.9]} 4.
Nc3 {[%clk 0:04:51.8]} 4... d6 {[%clk 0:04:52.3]} 5. a3 {[%clk 0:04:39.8]} 5...
a5 {[%clk 0:04:50.8]} 6. Nf3 {[%clk 0:04:38.3]} 6... Bg4 {[%clk 0:04:48.7]} 7.
h3 {[%clk 0:04:36.6]} 7... Be6 {[%clk 0:04:45.1]} 8. d3 {[%clk 0:04:35]} 8...
Qd7 {[%clk 0:04:44.1]} 9. e3 {[%clk 0:04:33.6]} 9... Nc6 {[%clk 0:04:41.4]} 10.
d4 {[%clk 0:04:26.2]} 10... e4 {[%clk 0:04:30.1]} 11. Nd2 {[%clk 0:04:22.3]}
11... Bxd4 {[%clk 0:04:20.7]} 12. exd4 {[%clk 0:04:21]} 12... Nxd4 {[%clk
0:04:19.7]} 13. Ndxe4 {[%clk 0:04:20.3]} 13... c5 {[%clk 0:04:09.6]} 14. Nxf6+
{[%clk 0:04:17.2]} 14... gxf6 {[%clk 0:04:07.6]} 15. Be3 {[%clk 0:04:14.4]}
15... Nf5 {[%clk 0:04:00.2]} 16. Nd5 {[%clk 0:04:12.7]} 16... Bxd5 {[%clk
0:03:51.9]} 17. Qxd5 {[%clk 0:04:08.2]} 17... Nxe3 {[%clk 0:03:50.5]} 18. fxe3
{[%clk 0:04:08.1]} 18... Qe7 {[%clk 0:03:44.2]} 19. O-O {[%clk 0:04:02.3]} 19...
Qxe3+ {[%clk 0:03:39.3]} 20. Kh2 {[%clk 0:04:01.5]} 20... O-O {[%clk 0:03:32.1]}
21. Rae1 {[%clk 0:03:58.9]} 1-0

[Event "Live Chess"]
[Site "Chess.com"]
[Date "2024.06.02"]
[Round "-"]
[White "chessgoatpawel"]
[Black "seasidecastle27"]
[Result "1-0"]
[WhiteElo "2078"]
[BlackElo "1933"]
[TimeControl "300"]
[EndTime "1:44:48 PDT"]
[Termination "chessgoatpawel won by resignation"]

1. e4 {[%clk 0:04:53.6]} 1... e6 {[%clk 0:04:58.9]} 2. d4 {[%clk 0:04:52.5]}
2... d5 {[%clk 0:04:58]} 3. e5 {[%clk 0:04:52.4]} 3... c5 {[%clk 0:04:56.7]} 4.
c3 {[%clk 0:04:45.6]} 4... Nc6 {[%clk 0:04:55.8]} 5. Nf3 {[%clk 0:04:44.3]} 5...
Bd7 {[%clk 0:04:53.8]} 6. Na3 {[%clk 0:04:43.4]} 6... cxd4 {[%clk 0:04:47.8]} 7.
cxd4 {[%clk 0:04:42.3]} 7... Bb4+ {[%clk 0:04:41.6]} 8. Bd2 {[%clk 0:04:40]}
8... Qa5 {[%clk 0:04:39.6]} 9. Nc2 {[%clk 0:04:37.8]} 9... Bxd2+ {[%clk
0:04:37.7]} 10. Qxd2 {[%clk 0:04:36.3]} 10... Qxd2+ {[%clk 0:04:35.3]} 11. Kxd2
{[%clk 0:04:36.2]} 11... Nge7 {[%clk 0:04:33.9]} 12. Bd3 {[%clk 0:04:33.7]}
12... Rc8 {[%clk 0:04:28.9]} 13. Rac1 {[%clk 0:04:30.3]} 13... O-O {[%clk
0:04:21.4]} 14. b3 {[%clk 0:04:22.8]} 14... Rc7 {[%clk 0:04:11.5]} 15. Ne3
{[%clk 0:04:19.7]} 15... Rfc8 {[%clk 0:04:09.7]} 16. Bb1 {[%clk 0:04:03.3]}
16... Ng6 {[%clk 0:04:07.4]} 17. Bxg6 {[%clk 0:04:00.7]} 17... hxg6 {[%clk
0:04:05.8]} 18. h4 {[%clk 0:04:00.6]} 18... Ne7 {[%clk 0:03:55.9]} 19. Rxc7
{[%clk 0:03:53.2]} 19... Rxc7 {[%clk 0:03:54.7]} 20. h5 {[%clk 0:03:53.1]} 20...
gxh5 {[%clk 0:03:52.4]} 21. Rxh5 {[%clk 0:03:53]} 21... Ng6 {[%clk 0:03:43]} 22.
g3 {[%clk 0:03:39.4]} 22... Bb5 {[%clk 0:03:37.8]} 23. Ng5 {[%clk 0:03:28.7]}
23... a5 {[%clk 0:03:27.3]} 24. f4 {[%clk 0:03:20.4]} 24... a4 {[%clk
0:03:25.8]} 25. f5 {[%clk 0:03:17.8]} 25... axb3 {[%clk 0:03:05.9]} 26. axb3
{[%clk 0:03:12.4]} 26... Bd7 {[%clk 0:03:00.5]} 27. fxg6 {[%clk 0:03:09.4]}
27... fxg6 {[%clk 0:02:58]} 28. Rh1 {[%clk 0:03:06.2]} 1-0

[Event "Live Chess"]
[Site "Chess.com"]
[Date "2024.06.02"]
[Round "-"]
[White "Dhaydon19"]
[Black "RichardABates"]
[Result "1-0"]
[WhiteElo "2639"]
[BlackElo "2367"]
[TimeControl "300"]
[EndTime "1:44:50 PDT"]
[Termination "Dhaydon19 won by resignation"]

1. d4 {[%clk 0:04:59.5]} 1... Nf6 {[%clk 0:04:58]} 2. Nf3 {[%clk 0:04:59.4]}
2... g6 {[%clk 0:04:56.1]} 3. g3 {[%clk 0:04:58.8]} 3... Bg7 {[%clk 0:04:54.8]}
4. Bg2 {[%clk 0:04:58.7]} 4... O-O {[%clk 0:04:53.8]} 5. O-O {[%clk 0:04:58.6]}
5... d5 {[%clk 0:04:52.6]} 6. c3 {[%clk 0:04:58.5]} 6... c5 {[%clk 0:04:46.9]}
7. Nbd2 {[%clk 0:04:58.4]} 7... cxd4 {[%clk 0:04:44.9]} 8. Nxd4 {[%clk
0:04:57.8]} 8... e5 {[%clk 0:04:39.8]} 9. N4b3 {[%clk 0:04:56.5]} 9... Nc6
{[%clk 0:04:38.2]} 10. e4 {[%clk 0:04:55.3]} 10... Bg4 {[%clk 0:04:31.6]} 11.
Bf3 {[%clk 0:04:51.2]} 11... Bh3 {[%clk 0:04:29.3]} 12. Re1 {[%clk 0:04:49.8]}
12... dxe4 {[%clk 0:04:24.7]} 13. Nxe4 {[%clk 0:04:47.3]} 13... Nxe4 {[%clk
0:04:23.1]} 14. Bxe4 {[%clk 0:04:44.9]} 14... Qxd1 {[%clk 0:04:12.8]} 15. Rxd1
{[%clk 0:04:43.5]} 15... Rad8 {[%clk 0:04:11.8]} 16. Be3 {[%clk 0:04:42.2]}
16... f5 {[%clk 0:04:06.8]} 17. Bd5+ {[%clk 0:04:40.2]} 17... Kh8 {[%clk
0:04:05.4]} 18. Bc5 {[%clk 0:04:37.2]} 18... Rfe8 {[%clk 0:03:57.7]} 19. Bf7
{[%clk 0:04:34.7]} 19... Rxd1+ {[%clk 0:03:55.9]} 20. Rxd1 {[%clk 0:04:32.7]}
20... Rd8 {[%clk 0:03:55]} 21. Rxd8+ {[%clk 0:04:30.6]} 21... Nxd8 {[%clk
0:03:53.6]} 22. Bd5 {[%clk 0:04:27.1]} 22... f4 {[%clk 0:03:43.8]} 23. Bxa7
{[%clk 0:04:24.7]} 23... Bf5 {[%clk 0:03:32.8]} 24. Nc5 {[%clk 0:04:07.1]} 24...
Nc6 {[%clk 0:03:23]} 25. Bb6 {[%clk 0:04:04.9]} 25... fxg3 {[%clk 0:03:16.9]}
26. hxg3 {[%clk 0:03:56.9]} 26... Bh6 {[%clk 0:03:14.8]} 27. Nxb7 {[%clk
0:03:54.5]} 27... Ne7 {[%clk 0:03:08.6]} 28. Bg2 {[%clk 0:03:52.5]} 28... Bc1
{[%clk 0:03:06.8]} 29. b4 {[%clk 0:03:40.7]} 29... Bd2 {[%clk 0:03:02]} 30. Bc5
{[%clk 0:03:35.2]} 30... Nc8 {[%clk 0:02:55.6]} 31. c4 {[%clk 0:03:33.3]} 31...
e4 {[%clk 0:02:49.4]} 32. b5 {[%clk 0:03:22.8]} 32... Kg7 {[%clk 0:02:41.8]} 33.
a4 {[%clk 0:03:20.3]} 33... Be6 {[%clk 0:02:35.6]} 34. Bf1 {[%clk 0:03:17.5]}
34... Kf7 {[%clk 0:02:27.2]} 35. Nd8+ {[%clk 0:03:15.5]} 1-0